Cogmind - Beta 10.2 @@@ ROGUE MODE // 2021.09.02 @ 14:34:03 Player: Cracklepappy Result: Self-destructed Performance ------------- Evolutions (2) 1000 Regions Visited (9) 1800 Robots Destroyed (221) 1105 Value Destroyed (7501) 7501 Prototype IDs (42) 840 Alien Tech Used (0) 0 Bonus (2320) 2320 TOTAL SCORE: 14566 Bonus ------- High Alert Combat Kills 1434 Entered Garrisons 200 Used RIF Installer 500 Aligned with FarCom 300 Friendly Fire -114 Cogmind --------- Core Integrity 100/550 Matter 78/300 Energy 95/100 System Corruption 3% Temperature Cool (22) Movement Treading (180) Ox1 Location -8/Materials Parts ------- > --- POWER (1) -------- (None) > --- PROPULSION (3) --- Light Treads Light Treads Light Treads > --- UTILITY (5) ------ High-capacity Storage Unit High-capacity Storage Unit Hardened Medium Armor Plating > --- WEAPON (2) ------- Heavy Assault Rifle Heavy Missile Launcher > --- INVENTORY (20) --- Improved Ion Engine Advanced Treads Carbon-fiber Leg Carbon-fiber Leg Improved VTOL Module Large Storage Unit High-capacity Battery (400) High-capacity Matter Pod (200) Advanced Signal Interpreter Hardened Heavy Armor Plating Hacking Suite Hacking Suite Relay Coupler [NC] (24) Relay Coupler [NC] (31) Plasma Cannon Heavy Assault Rifle Proton Missile Launcher Katana Makeshift Sword Peak State ------------ > --- POWER ------------ Improved Deuterium Engine > --- PROPULSION ------- Light Treads Light Treads Light Treads > --- UTILITY ---------- High-capacity Storage Unit High-capacity Storage Unit Humpback Medium Reactive Plating > --- WEAPON ----------- Heavy Particle Gun Improved EM Pulse Cannon > --- INVENTORY -------- Improved Deuterium Engine Improved Deuterium Engine Light Treads Light Treads Advanced Treads Carbon-fiber Leg Carbon-fiber Leg Carbon-fiber Leg Carbon-fiber Leg Flexi-carbon Leg Improved VTOL Module Improved Heat Sink Large Storage Unit High-capacity Storage Unit Humpback High-capacity Battery High-capacity Matter Pod Advanced Sensor Array Advanced Signal Interpreter Advanced Terrain Scanner Hardened Medium Armor Plating Hardened Medium Armor Plating Hardened Heavy Armor Plating Hacking Suite Hacking Suite System Shield Heavy EM Shotgun Precision Beam Rifle Precision Beam Rifle Improved EM Pulse Cannon Improved EM Pulse Cannon Plasma Cannon Heavy Assault Rifle Heavy Assault Rifle Shock Bomb Launcher Mini Grenade Launcher Katana Makeshift Sword [Rating: 34] Favorites ----------- Power Improved Deuterium Engine Engine Improved Deuterium Engine Propulsion Light Treads Treads Light Treads Wheel Compact Wheel Utility High-capacity Storage Unit Device Improved Heat Sink Storage High-capacity Storage Unit Hackware Hacking Suite Protection Core Shielding Weapon Autogun Energy Gun Heavy EM Shotgun Energy Cannon Improved EM Pulse Cannon Ballistic Gun Autogun Launcher Heavy Missile Launcher Build | -11 -10 -10 -9 -9 -9 -8 -8 -8 -8 ------- Run | Scr Mat Min Mat Min Exi Min Mat Gar Mat Slots Evolved 4 | . . . 2 . . . 2 . . Power . | . . . . . . . . . . Propulsion 1 | . . . . . . . 1 . . Utility 3 | . . . 2 . . . 1 . . Weapon . | . . . . . . . . . . Parts Attached 153 | 7 9 2 27 2 3 7 37 11 48 Power 11 | 1 . . 4 1 . 1 2 1 1 Engine 11 | 1 . . 4 1 . 1 2 1 1 Core . | . . . . . . . . . . Reactor . | . . . . . . . . . . Propulsion 30 | 2 1 . 4 . 1 2 9 3 8 Treads 29 | 1 1 . 4 . 1 2 9 3 8 Leg . | . . . . . . . . . . Wheel 1 | 1 . . . . . . . . . Hover . | . . . . . . . . . . Flight . | . . . . . . . . . . Utility 33 | 1 4 . 7 . 1 . 6 . 14 Device 2 | . 1 . 1 . . . . . . Storage 14 | 1 3 . 3 . 1 . 2 . 4 Processor . | . . . . . . . . . . Hackware 1 | . . . . . . . . . 1 Protection 16 | . . . 3 . . . 4 . 9 Artifact . | . . . . . . . . . . Weapon 79 | 3 4 2 12 1 1 4 20 7 25 Energy Gun 9 | 1 . . . . . . 4 2 2 Energy Cannon 12 | . . . . . . . 7 3 2 Ballistic Gun 33 | 2 3 . 9 1 . 3 5 . 10 Ballistic Cannon . | . . . . . . . . . . Launcher 25 | . 1 2 3 . 1 1 4 2 11 Special Weapon . | . . . . . . . . . . Impact Weapon . | . . . . . . . . . . Slashing Weapon . | . . . . . . . . . . Piercing Weapon . | . . . . . . . . . . Special Melee Weapon . | . . . . . . . . . . Unidentified Prototypes 5 | . . . 1 . . . 4 . . Parts Lost 24 | . . 1 2 . 4 2 6 1 8 Power 3 | . . 1 . . . . 1 . 1 Propulsion 8 | . . . 1 . 1 2 . . 4 Utility 2 | . . . 1 . . . . . 1 Weapon 11 | . . . . . 3 . 5 1 2 Highest Loss Streak 4 | . . 1 1 . 4 2 2 1 4 Average Slot Usage (%) 92 | . 98 98 98 100 90 87 89 89 88 Engine 10 | . 14 12 10 11 11 11 9 9 8 Treads 24 | . 24 28 21 22 22 21 27 27 26 Storage 29 | . 25 28 30 33 32 33 26 27 26 Protection 6 | . . . 8 11 1 . 8 9 7 Energy Cannon 3 | . . . . . . . 5 14 3 Ballistic Gun 14 | . 27 16 21 22 21 21 11 . 6 Naked Turns . | . . . . . . . . . . Heaviest Build 197 | 11 43 43 79 79 142 142 183 188 197 Greatest Support 62 | 16 40 40 44 44 44 44 62 60 60 Greatest Overweight (x) 4 | . 1 1 1 1 3 3 3 3 4 Average Overweight (x) 1 | . . . . 1 2 3 2 2 2 Largest Inventory Capacity 52 | 6 16 16 24 24 38 38 52 40 52 Average Capacity 32 | 5 11 16 19 24 35 38 39 40 39 Most Carried 40 | 6 13 14 24 24 37 38 40 40 40 Average Carried 31 | 5 9 13 18 23 32 36 39 39 39 Final Capacity 40 | 6 16 16 24 24 38 38 40 40 20 Final Carried 40 | 6 13 14 24 24 33 38 40 40 20 Class Distribution -------------------- 82% | Hauler-Mutant 14% | Mutant 3% | Scavenger-Mutant Dominant Class ---------------- Mutant | -10/Materials Mutant | -10/Mines Mutant | -9/Materials Hauler-Mutant | -9/Mines Hauler-Mutant | -9/Exiles Hauler-Mutant | -8/Mines Hauler-Mutant | -8/Materials Hauler-Mutant | -8/Garrison Hauler-Mutant | -8/Materials Resources | -11 -10 -10 -9 -9 -9 -8 -8 -8 -8 ----------- Run | Scr Mat Min Mat Min Exi Min Mat Gar Mat Matter Collected 4550 | 278 441 10 1283 153 20 420 849 175 921 Remotely . | . . . . . . . . . . Salvage Created 8340 | 52 420 148 1537 369 . 556 2502 749 2007 Parts 448 | . 32 2 111 19 . 34 115 43 92 Haulers Intercepted 14 | . 2 . 4 . . . 6 . 2 Recyclers Shooed 3 | . . . . . . . 1 . 2 Parts Field Recycled . | . . . . . . . . . . Retrieved Matter . | . . . . . . . . . . Parts Self-Destructed . | . . . . . . . . . . Prevented . | . . . . . . . . . . Kills | -11 -10 -10 -9 -9 -9 -8 -8 -8 -8 ------- Run | Scr Mat Min Mat Min Exi Min Mat Gar Mat Combat Hostiles Destroyed 182 | . 9 10 32 9 . 13 43 21 45 Guns 81 | . 6 . 26 9 . 9 20 1 10 Cannons 23 | . . . . . . . 8 11 4 AOE 75 | . 3 10 6 . . 4 13 8 31 Classes Destroyed 16 | 1 4 1 4 1 . 2 1 . 2 Worker 7 | . . . 1 . . . 5 . 1 Builder 5 | . . . 2 . . 1 1 . 1 Tunneler 2 | . . . . . . 1 . . 1 Hauler 14 | . 2 . 4 . . . 6 . 2 Recycler 10 | 1 . 2 . 1 . 1 3 . 2 Mechanic 1 | . . . . . . . . . 1 Operator 1 | . . . 1 . . . . . . Watcher 9 | . 2 . 4 . . . 1 . 2 Swarmer 39 | . 3 . 6 4 . 4 8 9 5 Grunt 84 | . 6 . 17 4 . 8 21 7 21 Brawler 7 | . . . . 1 . . 1 . 5 Duelist 6 | . . . . . . 1 2 . 3 Protector 3 | . . . . . . . 1 . 2 Sentry 32 | . . . 9 . . . 10 5 8 Hunter 1 | . . . . . . . . . 1 Assembled 10 | . . 10 . . . . . . . Best Kill Streak 12 | 1 5 12 6 4 . 6 8 7 11 Combat Bots Only 10 | . 4 10 4 4 . 4 6 7 9 Max Kills in Single Turn 7 | 1 2 7 3 1 . 3 3 3 7 Gunslinging 1 | . . . . . . 1 1 . . Exploded 6 | . 2 6 3 . . 2 3 3 5 Melee . | . . . . . . . . . . Uniques/NPCs Destroyed . | . . . . . . . . . . Combat | -11 -10 -10 -9 -9 -9 -8 -8 -8 -8 -------- Run | Scr Mat Min Mat Min Exi Min Mat Gar Mat Damage Taken 7988 | . 348 292 1168 204 592 732 1828 503 2321 Core 857 | . 68 14 126 22 69 108 145 32 273 Absorbed by Shields 11 | . . . . . . . . 11 . Core Remaining (%) 61 | 100 . 67 . . . 18 . . . Volleys Fired 456 | 4 38 3 107 19 24 39 97 34 91 Largest 2 | 2 2 2 2 2 2 2 2 2 2 Hottest 138 | 40 53 60 60 46 46 46 138 138 119 Shots Fired 830 | 8 76 6 213 38 32 73 178 51 155 Gun 624 | 8 72 . 208 38 16 69 117 1 95 Cannon 103 | . . . . . . . 41 43 19 Launcher 103 | . 4 6 5 . 16 4 20 7 41 Special . | . . . . . . . . . . Kinetic 607 | 8 72 . 208 38 16 69 112 . 84 Thermal 5 | . . . . . . . 5 . . Explosive 57 | . 4 6 5 . . 4 6 4 28 Electromagnetic 161 | . . . . . 16 . 55 47 43 Robot Hit Streak 31 | 7 9 3 29 10 11 15 31 19 23 Robot Miss Streak 4 | . 3 1 2 4 3 2 3 2 3 Penetration Max . | . . . . . . . . . . Secondary Targets 11 | . . . 2 1 . 1 6 . 1 Max Gunslinging Chain 1 | . . . 1 1 . 1 1 . 1 Shots Hit Robots 602 | 7 51 3 156 25 19 54 142 29 116 Core Hits 387 | 2 21 25 73 14 2 29 89 22 110 Critical Hits 5 | . . . 3 . . 1 1 . . Critical Kills 2 | . . . 1 . . 1 . . . Critical Parts Destroyed 3 | . . . 2 . . . 1 . . Melee Attacks . | . . . . . . . . . . Impact . | . . . . . . . . . . Slashing . | . . . . . . . . . . Piercing . | . . . . . . . . . . Sneak Attacks . | . . . . . . . . . . Combat Hostiles . | . . . . . . . . . . Follow-up Attacks . | . . . . . . . . . . Damage Inflicted 17731 | 61 783 711 2711 432 137 1166 4664 1426 5640 Guns 7059 | 61 618 . 2330 370 119 731 1609 23 1198 Cannons 2100 | . . . . . . . 991 756 353 Explosions 8158 | . 162 711 317 . 18 313 1963 647 4027 Melee . | . . . . . . . . . . Ramming 414 | . 3 . 64 62 . 122 101 . 62 Kinetic 6751 | 61 618 . 2330 370 119 731 1550 . 972 Thermal 442 | . . . . . . . 228 35 179 Explosive 6197 | . 162 711 268 . . 313 1080 523 3140 Electromagnetic 3927 | . . . 49 . 18 . 1705 868 1287 Impact . | . . . . . . . . . . Slashing . | . . . . . . . . . . Piercing . | . . . . . . . . . . Highest Corruption 3 | . . . . . 1 1 . . 3 Average Corruption 1 | . . . . . 1 1 . . 1 Corruption Purged . | . . . . . . . . . . Effects 21 | . . . . . . 10 . . 11 Message Errors 6 | . . . . . . 4 . . 2 Heat Flow Errors 3 | . . . . . . . . . 3 Energy Discharges 4 | . . . . . . 2 . . 2 Data Loss (minor) 4 | . . . . . . 3 . . 1 Targeting Errors 2 | . . . . . . . . . 2 Weapon Failures 2 | . . . . . . 1 . . 1 Overload Shots . | . . . . . . . . . . Overflow Damage 438 | . . 15 4 . . 1 176 57 185 Projectiles 52 | . . . . . . . 37 14 1 Explosions 370 | . . 15 . . . 1 139 43 172 Melee 16 | . . . 4 . . . . . 12 Knockbacks 1 | . . . . 1 . . . . . Impact 1 | . . . . 1 . . . . . Kinetic . | . . . . . . . . . . Secondary . | . . . . . . . . . . Self-Inflicted Damage 636 | . . 24 10 . 50 89 167 68 228 Shots 34 | . . 1 1 . 8 3 11 2 8 Rammed 27 | . 1 . 8 6 . 6 4 . 2 Targets Rammed 31 | . 1 . 9 6 . 6 7 . 2 Kicked . | . . . . . . . . . . Crushed 4 | . . . 1 . . . 3 . . Highest Temperature 279 | . 34 . 37 16 4 2 207 279 270 Average Temperature 44 | . 11 . 8 4 1 1 48 94 47 Received Heat Transfer 2561 | . 189 20 462 51 . 279 639 165 756 Siege Activations . | . . . . . . . . . . Robots Corrupted 7 | . . . . . . . 4 1 2 Combat Hostiles 3 | . . . . . . . 2 1 . Parts Fried 26 | . . . . . . . 11 5 10 Impact Corruptions 2 | . . . 1 . . . . . 1 Robots Melted . | . . . . . . . . . . Combat Hostiles . | . . . . . . . . . . Parts Melted . | . . . . . . . . . . Heat Transferred 648 | . . . . . . . 398 50 200 Parts Sabotaged . | . . . . . . . . . . Parts Stolen . | . . . . . . . . . . Parts Stripped . | . . . . . . . . . . Power Chain Reactions 6 | . . . . . . . 3 1 2 Missiles Intercepted . | . . . . . . . . . . Alert | -11 -10 -10 -9 -9 -9 -8 -8 -8 -8 ------- Run | Scr Mat Min Mat Min Exi Min Mat Gar Mat Peak Influence 1466 | 5 288 19 366 146 . 135 742 1466 1435 Initial 714 | . 3 19 . 76 . . 5 468 714 Average 479 | 1 77 12 170 76 . 72 404 1176 889 Maximum Alert Level 4 | . 1 . 1 . . . 3 4 4 Low Security (%) 40 | 100 83 100 68 100 . 100 7 . . Level 1 15 | . 16 . 31 . . . 40 . . Level 2 13 | . . . . . . . 43 10 12 Level 3 18 | . . . . . . . 8 28 74 Level 4 12 | . . . . . . . . 60 12 Level 5 . | . . . . . . . . . . High Security . | . . . . . . . . . . Max Security . | . . . . . . . . . . Squads Dispatched 26 | . 1 . 6 1 . . 8 . 10 Investigation 7 | . . . 2 1 . . 3 . 1 Extermination . | . . . . . . . . . . Reinforcement 10 | . 1 . 4 . . . 1 . 4 Assault 5 | . . . . . . . 1 . 4 Garrison 4 | . . . . . . . 3 . 1 Intercept . | . . . . . . . . . . Construction Impeded 1 | . . . . . . . . . 1 Haulers Reinforced . | . . . . . . . . . . Stealth | -11 -10 -10 -9 -9 -9 -8 -8 -8 -8 --------- Run | Scr Mat Min Mat Min Exi Min Mat Gar Mat Distress Signals 11 | . 1 . 4 . . . 2 . 4 Communications Jammed . | . . . . . . . . . . Distress Signals . | . . . . . . . . . . Times Spotted 266 | . 20 18 50 9 1 15 65 23 65 Peak Tracking Total 15 | . 5 15 5 4 2 4 6 8 8 Tactical Retreats 10 | . . 1 . . . 2 3 3 1 Traps | -11 -10 -10 -9 -9 -9 -8 -8 -8 -8 ------- Run | Scr Mat Min Mat Min Exi Min Mat Gar Mat Traps Triggered 28 | . . . 3 . . . 1 17 7 Indirectly 1 | . . . . . . . . 1 . Trap Hack Attempts . | . . . . . . . . . . Triggered . | . . . . . . . . . . Disarmed . | . . . . . . . . . . Reprogrammed . | . . . . . . . . . . Reused . | . . . . . . . . . . Traps Extracted . | . . . . . . . . . . Installed 1 | . . . . . 1 . . . . Triggered . | . . . . . . . . . . Machines | -11 -10 -10 -9 -9 -9 -8 -8 -8 -8 ---------- Run | Scr Mat Min Mat Min Exi Min Mat Gar Mat Machines Disabled 20 | . . . 1 . 1 1 3 5 9 Max in Single Turn 1 | . . . 1 . 1 1 1 1 1 Garrison Relay 4 | . . . . . . . . 4 . Machines Sabotaged . | . . . . . . . . . . Garrisons Compromised . | . . . . . . . . . . Overloaded Fab Kills . | . . . . . . . . . . Fab Network Shutdowns . | . . . . . . . . . . Hacking | -11 -10 -10 -9 -9 -9 -8 -8 -8 -8 --------- Run | Scr Mat Min Mat Min Exi Min Mat Gar Mat Machines Accessed 42 | . 6 . 10 2 2 . 14 . 8 Terminals 32 | . 6 . 7 1 . . 11 . 7 Fabricators . | . . . . . . . . . . Repair Stations 2 | . . . 1 . . . . . 1 Recycling Units . | . . . . . . . . . . Scanalyzers 4 | . . . 2 . . . 2 . . Garrison Access 1 | . . . . . . . 1 . . Total Hacks 157 | . 27 . 34 3 24 . 50 . 19 Successful 103 | . 15 . 24 1 24 . 31 . 8 Failed 53 | . 11 . 10 2 . . 19 . 11 Catastrophic 9 | . . . 1 . . . 3 . 5 Database Lockouts 1 | . 1 . . . . . . . . Manual 36 | . 7 . 4 . 1 . 16 . 8 Terminals 88 | . 27 . 13 2 . . 29 . 17 Fabricators . | . . . . . . . . . . Repair Stations 9 | . . . 7 . . . . . 2 Recycling Units . | . . . . . . . . . . Scanalyzers 33 | . . . 14 . . . 19 . . Garrison Access 2 | . . . . . . . 2 . . Terminal Hacks 58 | . 14 . 4 1 24 . 9 . 6 Record 24 | . 1 . . . 23 . . . . Part Schematic 1 | . . . 1 . . . . . . Robot Analysis 3 | . 1 . . . . . 2 . . Prototype ID Bank 11 | . 4 . 1 . . . 4 . 2 Open Door 1 | . . . . 1 . . . . . Branch Access Points 1 | . . . . . . . 1 . . Alert Level 1 | . . . . . . . 1 . . Unreport Threat 7 | . 1 . 2 . . . 1 . 3 Locate Traps 4 | . 4 . . . . . . . . Hauler Manifests 3 | . 3 . . . . . . . . Zone Layout 1 | . . . . . . . . . 1 EX-Prototype ID Bank 1 | . . . . . 1 . . . . Fabricator Hacks . | . . . . . . . . . . Repair Station Hacks 7 | . . . 5 . . . . . 2 Scan Component 4 | . . . 3 . . . . . 1 Repair 3 | . . . 2 . . . . . 1 Recycling Unit Hacks . | . . . . . . . . . . Scanalyzer 32 | . . . 14 . . . 18 . . Insert Component 15 | . . . 6 . . . 9 . . Analyze 17 | . . . 8 . . . 9 . . Garrison Access Hacks 1 | . . . . . . . 1 . . Unlock Access 1 | . . . . . . . 1 . . Unauthorized Hacks 5 | . 1 . 1 . . . 3 . . Terminals 5 | . 1 . 1 . . . 3 . . Track 4 | . . . 1 . . . 3 . . Assimilate 1 | . 1 . . . . . . . . Fabricators . | . . . . . . . . . . Repair Stations . | . . . . . . . . . . Recycling Units . | . . . . . . . . . . Scanalyzers . | . . . . . . . . . . Garrison Access . | . . . . . . . . . . Data Cores Recovered 1 | . . . 1 . . . . . . Used . | . . . . . . . . . . Hacking Detections 38 | . 6 . 10 1 . . 13 . 8 Full Trace Events 3 | . 1 . . . . . 2 . . Feedback Events . | . . . . . . . . . . Feedback Blocked . | . . . . . . . . . . Robot Schematics Acquired . | . . . . . . . . . . Robots Built . | . . . . . . . . . . Matter . | . . . . . . . . . . Time . | . . . . . . . . . . Total Robot Build Rating . | . . . . . . . . . . Part Schematics Acquired 15 | . . . 6 . . . 9 . . Parts Built . | . . . . . . . . . . Matter . | . . . . . . . . . . Time . | . . . . . . . . . . Total Part Build Rating . | . . . . . . . . . . Parts Repaired 3 | . . . 2 . . . . . 1 Time 120 | . . . 94 . . . . . 26 Parts Recycled . | . . . . . . . . . . Recycled Matter . | . . . . . . . . . . Retrieved Matter . | . . . . . . . . . . Retrieved Components . | . . . . . . . . . . Parts Scanalyzed 14 | . . . 5 . . . 9 . . Part Schematics Acquired 14 | . . . 5 . . . 9 . . Parts Damaged . | . . . . . . . . . . Bothacking | -11 -10 -10 -9 -9 -9 -8 -8 -8 -8 ------------ Run | Scr Mat Min Mat Min Exi Min Mat Gar Mat Used RIF Installer 1 | . . . . . . . . 1 . Robots Hacked . | . . . . . . . . . . Non-combat . | . . . . . . . . . . Combat . | . . . . . . . . . . Robot Hacks Applied . | . . . . . . . . . . Relay Couplers Released 17 | . . . . . . . . 17 . Machine Destruction 17 | . . . . . . . . 17 . Robots Rewired . | . . . . . . . . . . Allies Hacked . | . . . . . . . . . . Hacks Repelled . | . . . . . . . . . . Allies | -11 -10 -10 -9 -9 -9 -8 -8 -8 -8 -------- Run | Scr Mat Min Mat Min Exi Min Mat Gar Mat Total Allies 3 | . 1 2 . . . . . . . Largest Group 2 | . 1 2 . . . . . . . Highest-Rated Group 45 | . 10 45 . . . . . . . Highest-Rated Ally 31 | . 10 31 . . . . . . . Total Orders . | . . . . . . . . . . Ally Attacks 14 | . . 14 . . . . . . . Total Damage 187 | . . 187 . . . . . . . Kills 7 | . . 7 . . . . . . . Allies Corrupted . | . . . . . . . . . . Allies Melted . | . . . . . . . . . . Intel | -11 -10 -10 -9 -9 -9 -8 -8 -8 -8 ------- Run | Scr Mat Min Mat Min Exi Min Mat Gar Mat Robot Analysis Total 3 | . 1 . . . . . 2 . . Derelict Logs Recovered 2 | . . . . 2 . . . . . Drone Launches . | . . . . . . . . . . Drone Recoveries . | . . . . . . . . . . Exploration | -11 -10 -10 -9 -9 -9 -8 -8 -8 -8 ------------- Run | Scr Mat Min Mat Min Exi Min Mat Gar Mat Turns Passed 17280 | 112 1106 92 2591 1089 2602 1642 3234 2509 2303 Spaces Moved 7836 | 83 622 45 1156 607 1276 700 1388 1045 914 Core 12 | 12 . . . . . . . . . Treads 7552 | . 421 45 1156 607 1276 700 1388 1045 914 Legs . | . . . . . . . . . . Wheels 272 | 71 201 . . . . . . . . Hover . | . . . . . . . . . . Flight . | . . . . . . . . . . Fastest Speed 50 | 50 100 160 160 165 165 205 195 200 200 Average Speed 190 | 92 150 178 171 165 195 210 197 219 202 Slowest Speed 240 | 100 180 180 180 165 205 220 220 220 240 Overloaded Moves . | . . . . . . . . . . Propulsion Burnouts . | . . . . . . . . . . Robots Hopped . | . . . . . . . . . . Cave-ins Triggered . | . . . . . . . . . . Exploration Rate (%) 75 | 4 98 19 96 93 92 100 98 75 83 Regions Visited 9 Branch Regions 4 Pre-discovered Areas 2 | . . . . 1 1 . . . . Known Exits Taken 1 | . . . . . . . 1 . . Unknown Exits Taken 7 | 1 1 1 1 1 1 1 . . . Scrap Searched 3 | . . . . 2 . 1 . . . Spaces Dug 1 | . . . . . . . . 1 . Terrain Destroyed 445 | . 25 35 27 . . 27 108 13 210 Melee . | . . . . . . . . . . Projectile . | . . . . . . . . . . AOE 445 | . 25 35 27 . . 27 108 13 210 Terrain Rammed . | . . . . . . . . . . Walls Destroyed . | . . . . . . . . . . Machines Disabled . | . . . . . . . . . . Actions | -11 -10 -10 -9 -9 -9 -8 -8 -8 -8 --------- Run | Scr Mat Min Mat Min Exi Min Mat Gar Mat Total 9400 | 109 730 50 1589 661 1353 788 1713 1210 1197 Wait 578 | 8 36 . 235 9 23 23 87 75 82 Move 7826 | 82 621 44 1155 606 1275 699 1387 1043 914 Hop . | . . . . . . . . . . Pick Up 180 | 8 13 1 32 9 20 11 47 7 32 Fast Attach 29 | 4 6 . 2 . 1 1 5 . 10 Attach 38 | 2 . . 5 . 2 4 11 1 13 Detach 1 | . . . . . . . . . 1 Swap 87 | 1 3 2 20 2 . 2 22 10 25 Drop 142 | . 12 . 24 10 7 3 50 9 27 Fire 456 | 4 38 3 107 19 24 39 97 34 91 Melee . | . . . . . . . . . . Ram . | . . . . . . . . . . Kick . | . . . . . . . . . . Crush 31 | . 1 . 9 6 . 6 7 . 2 Escape Stasis 31 | . . . . . . . . 31 . Rewire . | . . . . . . . . . . Trap 1 | . . . . . 1 . . . . Miscellaneous . | . . . . . . . . . . Route ------- -11/Scrapyard -10/Materials (discovered 4 exits: *Mat x3 / [*Min]) -10/Mines -9/Materials (discovered 4 exits: *Mat x2 / *Min / [*Sto]) -9/Mines (discovered 3 exits: *Mat x2 / *Exi) -9/Exiles -8/Mines (discovered 2 exits: *Mat x2) -8/Materials (discovered 4 exits: *Fac x3 / Gar) -8/Garrison (discovered 3 exits: *Mat x3) -8/Materials (discovered 3 exits: *Fac x3) History --------- Turn | Location | Event 34 | -11/Scrapyard | Discovered new exit (range 15) 113 | -11/Scrapyard | Entered Materials 272 | -10/Materials | Discovered new exit (range 10) 309 | -10/Materials | Central database locked down 325 | -10/Materials | Build established: Mutant 468 | -10/Materials | Discovered new exit (range 3) 706 | -10/Materials | Discovered new exit (range 16) 975 | -10/Materials | Discovered new exit (range 15) 1219 | -10/Materials | Entered Mines 1252 | -10/Mines | Discovered new exit (range 14) 1262 | -10/Mines | Assembled infested the area 1267 | -10/Mines | Assisted by a Guerilla fighting off Assembled 1308 | -10/Mines | Met a Derelict bent on vengeance 1311 | -10/Mines | Entered Materials 1311 | -9/Materials | Evolved 2 slots: Utility x2 1320 | -9/Materials | Destroyed 10 combat bots 1460 | -9/Materials | Discovered new exit (range 3) 1610 | -9/Materials | Repaired Broken Autogun 1666 | -9/Materials | Repaired Flexi-carbon Leg 2417 | -9/Materials | Build established: Scavenger-Mutant 2552 | -9/Materials | Discovered new exit (range 4) 2684 | -9/Materials | Discovered new exit (range 16) 2749 | -9/Materials | Discovered new exit (range 16) 2986 | -9/Materials | Build established: Mutant 3290 | -9/Materials | Build established: Hauler-Mutant 3902 | -9/Materials | Entered Mines 4063 | -9/Mines | Deemed a non-threat by the Exiles lab entrance 4063 | -9/Mines | Discovered new exit (range 5) 4109 | -9/Mines | Discovered new exit (range 7) 4319 | -9/Mines | Met a Derelict shopkeep closing up shop 4465 | -9/Mines | Learned location of 1 exit from Materials 4481 | -9/Mines | A weapon hastily lodged in a ceiling crevice suddenly fell to the ground 4532 | -9/Mines | Found a hidden stash of uninstalled traps 4713 | -9/Mines | Discovered new exit (range 6) 4991 | -9/Mines | Entered Exiles 5029 | -9/Exiles | Met 8R-AWN 5059 | -9/Exiles | Met EX-HEX 5166 | -9/Exiles | Met EX-DEC 5197 | -9/Exiles | Visited The Gauntlet 5654 | -9/Exiles | Learned location of Zion (-6) 6304 | -9/Exiles | Met EX-BIN 7234 | -9/Exiles | Aligned with FarCom system 7236 | -9/Exiles | Given EX-Vault access code 7286 | -9/Exiles | Opened EX-Vault 7300 | -9/Exiles | Found Field Lobotomy Kit 7344 | -9/Exiles | Warned to stay clear of 0b10 Research branches 7370 | -9/Exiles | Exiles lab attacked by MAIN.C 7480 | -9/Exiles | Discovered new exit (range 10) 7529 | -9/Exiles | Attacked by the Exiles 7581 | -9/Exiles | Core integrity fell below 50% 7593 | -9/Exiles | Entered Mines 7624 | -8/Mines | Lost 4 parts (1n3w) 7853 | -8/Mines | Discovered new exit (range 10) 8607 | -8/Mines | Core integrity fell below 20% 9217 | -8/Mines | Discovered new exit (range 9) 9235 | -8/Mines | Entered Materials 9235 | -8/Materials | Evolved 2 slots: Propulsion x1, Utility x1 9236 | -8/Materials | Identified exit to Factory 9399 | -8/Materials | Garrison activated, responded to threat 10535 | -8/Materials | Discovered exit to Factory (range 9) 11827 | -8/Materials | Discovered exit to Factory (range 4) 12035 | -8/Materials | First assault squad dispatched 12453 | -8/Materials | Identified exit to Garrison 12469 | -8/Materials | Entered Garrison 12522 | -8/Garrison | Triggered checkpoint 12742 | -8/Garrison | Triggered checkpoint 12816 | -8/Garrison | Destroyed 7 combat bots 12886 | -8/Garrison | Discovered new exit (range 12) 12987 | -8/Garrison | Triggered checkpoint 13226 | -8/Garrison | Discovered new exit (range 14) 13450 | -8/Garrison | Triggered checkpoint 13506 | -8/Garrison | Discovered new exit (range 14) 13545 | -8/Garrison | Installed Relay Interface Framework 13631 | -8/Garrison | Garrison Relay disabled 13853 | -8/Garrison | Garrison Relay disabled 14162 | -8/Garrison | Triggered checkpoint 14199 | -8/Garrison | Garrison Relay disabled 14482 | -8/Garrison | Triggered checkpoint 14531 | -8/Garrison | Garrison Relay disabled 14978 | -8/Garrison | Entered Materials 15616 | -8/Materials | Repaired Hcp. Storage Unit 15778 | -8/Materials | First assault squad dispatched 15843 | -8/Materials | Destroyed 9 combat bots 15930 | -8/Materials | Discovered exit to Factory (range 15) 16605 | -8/Materials | Core integrity fell below 50% 16652 | -8/Materials | Discovered exit to Factory (range 16) 16661 | -8/Materials | Lost 3 parts (2n1w) 17020 | -8/Materials | Discovered exit to Factory (range 16) 17027 | -8/Materials | Destroyed 9 combat bots 17280 | -8/Materials | Core integrity fell below 20% 17281 | -8/Materials | Self-destructed Last Messages --------------- 17234_ W-25 Informer sends out distress signal. 17247_ O-16 Technician: "IFF HANDSHAKE FAILED. SECURING TERMINAL." 17249_ ALERT: Hostiles spotted, dispatching reinforcements to Terminal M009. 17250_ Imp. Deuterium Engine destroyed. 17260_ Y-45 Defender emerges from the garrison. 17264_ G-47 Trooper destroyed. 17266_ System corrupted: Heat flow error (+144). 17268_ ALERT: Hostiles spotted, dispatching reinforcements to Terminal M012. 17269_ The unstable cave ceiling collapses. 17271_ Hvy. Missile Launcher destroyed. 17273_ Slug penetrates Garrison Access. 17274_ Y-45 Defender destroyed. 17276_ Slug penetrates Garrison Access. 17277_ Lgt. Treads destroyed. 17279_ Slug penetrates Garrison Access. 17279_ Destroyed Assault Rifle. 17279_ Humpback destroyed. 17279_ Destroyed Humpback. Map ----- +----------------------------------------------------+ | ????????????????????# !# # | | ????????????????????# " # | | ????????????????????# # # | | ????????????????????# /! # " | | ????????????????????# !! # # | | ??????????????? #???### #### # | | ?????????# ??? #?????###??# # | | ?????????# """ #??????????# # | | ?????????# """ #??????????# ####? | | ?????????# #??????????# #???? | | #######??# """ #??????????# #???? | | # "T" ?# """ #??????????# #???? | | # ?# """ #??????????# #???? | | # ? ????######??#= #???? | | # #+#+####### #### ##### | | # / | | # """ # T | | ? """ ## ######## ########## | | ?? """ ??# #??????######?????????? | | ?? ??# #??????????????????????? | | ?######???# #??????????????????????? | | # ??????# #??????????????????????? | | # ????#!#??????????????????????? | | ?? ??#*#??????????????????????? | | ?????? !#!#??????????????????????? | | ?????????#]@#??????????????????????? | | ?????? !!!!!?????????????????????? | | ????# Y=][]] ???????????????????? | | ????# " ! ?????????????????? | | ????# "G" ???????????????? | | ????# " " ?????????????? | | ????# h !] #???????????? | | ????# Y !] #???????????? | | ????? ] #???????????? | | ????? ???????????? | | ????# ! ????????????? | | ?????#?## #o ######+##????????????? | | ???????? ? ????????????????????? | | ???????? ? ????????????????????? | | ???????? ? ????????????????????? | | ???????????! ?????????????????????? | | ???????????????????????????????????? | | ???????????????????????????????????? | | | | | | | | | | | | | | | +----------------------------------------------------+ Best States ------------- Heat Dissipation 42 Energy Generation 16 Energy Capacity 290 Matter Stores 500 Matter Capacity 500 Sight Range 16 Terrain Scan Density 10 Armor Coverage 225 Resistance: KI 30 Core Shielding 20 Propulsion Shielding 33 Evasion (%) 50 Recoil Reduction 3 Offensive Hacking 10 Item Schematics ----------------- Hcp. Storage Unit | -9/Materials | Hacked Flexi-carbon Leg | -9/Materials | Scanalyzed Hacking Suite | -9/Materials | Scanalyzed Salvage Targeting Computer | -9/Materials | Scanalyzed Adv. Treads | -9/Materials | Scanalyzed Imp. Signal Interpreter | -9/Materials | Scanalyzed Hrd. Heavy Armor Plating | -8/Materials | Scanalyzed Shock Bomb Launcher | -8/Materials | Scanalyzed Adv. Sensor Array | -8/Materials | Scanalyzed System Shield | -8/Materials | Scanalyzed Imp. VTOL Module | -8/Materials | Scanalyzed Adv. Signal Interpreter | -8/Materials | Scanalyzed Lrg. Storage Unit | -8/Materials | Scanalyzed Adv. Terrain Scanner | -8/Materials | Scanalyzed Hrd. Medium Armor Plating | -8/Materials | Scanalyzed Robot Schematics ------------------ None Fabricated ------------ Nothing Alien Tech Used ----------------- None Achievements -------------- None Challenges ------------ None Game ------ Seed SupercompositeBiometalRigger Manual? 0 Play Time 01:45:13 Cumulative 287.2 hours Start 2021.08.31 @ 22:24:17 End 2021.09.02 @ 14:34:03 Sessions 3 Manual Loads 0 Difficulty Rogue Special Mode None Game No. 292 Rogue 292 Adventurer 0 Explorer 0 Win Type - Total 4 Types 4/0/0/0/0/0/0/0/0 Lore% 64 Gallery% 79 Achievement% 61 Wizard Run 0 Options --------- ASCII 0 Keyboard 0 Movement Numpad Keybinds 0 Fullscreen 2 Font 24/Terminus Map View 76x50 Tactical HUD 1 Map Filters NONE Filters NONE Steam 1 RUN: c9851b3a-f9ad-42ff-992c-7c80d3075540